Cogmind - Beta 17.1 *** ADVENTURER MODE // 2026.09.11 @ 18:24:08 Player: Goose Result: Destroyed by Chaos Wyrm with Ragnarok Missile Launcher Performance ------------- Evolutions (0) 0 Regions Visited (3) 600 Robots Destroyed (27) 135 Value Destroyed (757) 757 Prototype IDs (1) 20 Alien Tech Used (0) 0 Bonus (5419) 5419 TOTAL SCORE: 6931 Bonus ------- Follower Combat Kills 141 Prayed to X0-1V1 5000 Registered with UFD 300 Friendly Fire -22 Cogmind --------- Core Integrity 0/200 Matter 300/300 Energy 100/100 System Corruption 0% Temperature Cool (0) Movement Walking (400) Ox4 Location -9/Scraptown Parts ------- > --- POWER (1) -------- (None) > --- PROPULSION (2) --- Aluminum Leg > --- UTILITY (2) ------ High-capacity Storage Unit X0-1V1's Piety Tracker > --- WEAPON (2) ------- Small Laser Beam Rifle > --- INVENTORY (20) --- Ion Engine Aluminum Leg Aluminum Leg Aluminum Leg Improved Heat Sink Large Storage Unit High-capacity Battery (250) High-capacity Matter Pod (200) Sensor Array Core Shielding Scrap Shield Small Laser Assault Rifle Mining Claw Peak State ------------ > --- POWER ------------ Ion Engine > --- PROPULSION ------- Aluminum Leg Aluminum Leg > --- UTILITY ---------- Large Storage Unit X0-1V1's Piety Tracker > --- WEAPON ----------- Small Laser Beam Rifle > --- INVENTORY -------- Ion Engine Subdweller Power Source Aluminum Leg Aluminum Leg Aluminum Leg Improved Heat Sink High-capacity Battery High-capacity Matter Pod Sensor Array Core Shielding Scrap Shield Small Laser Assault Rifle Mining Claw [Rating: 22] Favorites ----------- Power Ion Engine Engine Ion Engine Propulsion Aluminum Leg Leg Aluminum Leg Wheel Compact Wheel Utility Large Storage Unit Device Sensor Array Storage Large Storage Unit Protection Core Shielding Weapon Small Laser Energy Gun Small Laser Ballistic Gun Light Assault Rifle Launcher Grenade Launcher Slashing Weapon Mining Claw Build | -11 -10 -10 -9 ------- Run | Yrd Mat Sub Scr Slots Evolved . | . . . . Power . | . . . . Propulsion . | . . . . Utility . | . . . . Weapon . | . . . . Parts Attached 32 | 6 23 . 3 Power 4 | 1 3 . . Engine 4 | 1 3 . . Core . | . . . . Reactor . | . . . . Propulsion 12 | 2 10 . . Treads . | . . . . Leg 10 | . 10 . . Wheel 2 | 2 . . . Hover . | . . . . Flight . | . . . . Utility 8 | 1 5 . 2 Device 3 | . 2 . 1 Storage 4 | 1 2 . 1 Processor . | . . . . Hackware . | . . . . Protection 1 | . 1 . . Artifact . | . . . . Weapon 8 | 2 5 . 1 Energy Gun 4 | . 3 . 1 Energy Cannon . | . . . . Ballistic Gun 2 | 2 . . . Ballistic Cannon . | . . . . Launcher 1 | . 1 . . Special Weapon . | . . . . Impact Weapon . | . . . . Slashing Weapon 1 | . 1 . . Piercing Weapon . | . . . . Special Melee Weapon . | . . . . Unidentified Prototypes 1 | . . . 1 Parts Lost 4 | . 1 1 2 Power 1 | . . . 1 Propulsion 2 | . 1 . 1 Utility . | . . . . Weapon 1 | . . 1 . Highest Loss Streak 2 | . 1 1 2 To Critical Strikes . | . . . . Average Backups 13 | 2 13 13 13 Power 1 | . 2 2 1 Propulsion 3 | 1 3 3 3 Utility 5 | . 4 5 6 Weapon 3 | . 3 3 3 Tool/Special . | . . . . Unused Backups 20 | . 8 3 9 Power 4 | . 1 1 2 Propulsion 6 | . 4 . 2 Utility 9 | . 3 2 4 Weapon 1 | . . . 1 Tool/Special . | . . . . Average Slot Usage (%) 99 | . 98 99 99 Engine 14 | . 14 14 14 Leg 26 | . 24 28 28 Wheel 1 | . 3 . . Device 11 | . 13 . 13 Storage 14 | . 14 14 14 Protection 2 | . . 14 . Energy Gun 20 | . 14 20 28 Ballistic Gun 5 | . 12 . . Launcher 1 | . . 7 . Peak Build Rating 22 | 6 8 9 22 Average Rating 13 | 5 7 8 21 On Entrance 5 | . 6 8 8 Avg Prop Armor Cover (%) . | . . . . Naked Turns . | . . . . Heaviest Build 50 | 10 30 30 50 Greatest Support 26 | 26 26 20 20 Greatest Overweight (x) 9 | . 9 1 4 Average Overweight (x) 1 | . . 1 1 Largest Inventory Capacity 20 | 8 15 15 20 Average Capacity 15 | 6 14 15 17 Most Carried 15 | 6 15 15 15 Average Carried 14 | 3 13 14 14 Final Capacity 20 | 8 15 15 20 Final Carried 15 | 6 15 14 15 Class Distribution -------------------- 53% | Scavenger-Mutant 46% | Mutant Dominant Class ---------------- Mutant | -10/Materials Scavenger-Mutant | -10/Subcaves Scavenger-Mutant | -9/Scraptown Resources | -11 -10 -10 -9 ----------- Run | Yrd Mat Sub Scr Matter Collected 980 | 193 583 89 115 Remotely . | . . . . Salvage Created 771 | . 676 95 . Parts 56 | . 48 8 . Haulers Intercepted . | . . . . Recyclers Shooed . | . . . . Parts Field Recycled . | . . . . Retrieved Matter . | . . . . Parts Self-Destructed 6 | . . 6 . Prevented . | . . . . Parts Restored . | . . . . Kills | -11 -10 -10 -9 ------- Run | Yrd Mat Sub Scr Combat Hostiles Destroyed 26 | . 21 5 . Guns 16 | . 13 3 . AOE 10 | . 8 2 . Classes Destroyed 4 | . 3 1 . Worker 1 | . 1 . . Swarmer 8 | . 6 2 . Grunt 15 | . 15 . . Subdweller 3 | . . 3 . Best Kill Streak 4 | . 4 3 . Combat Bots Only 3 | . 3 3 . Max Kills in Single Turn 2 | . 2 1 . Gunslinging . | . . . . Exploded 2 | . 2 1 . Melee . | . . . . Uniques/NPCs Destroyed . | . . . . Combat | -11 -10 -10 -9 -------- Run | Yrd Mat Sub Scr Hostile Shots Fired 152 | . 107 43 2 Missed 39 | . 20 19 . Hits 113 | . 87 24 2 Projectile 113 | . 87 24 2 Critical Strikes 2 | . 2 . . Damage Taken 1185 | . 746 230 209 Core 271 | . 149 21 101 Absorbed by Shields . | . . . . Redirected to Shielding 7 | . 5 2 . Ignored by Resistances 362 | . 237 71 54 Regen/Repaired (Parts) 21 | . 21 . . Core Remaining (%) 100 | 100 . . . Volleys Fired 72 | . 59 13 . Largest 2 | . 2 2 . Hottest 80 | . 80 80 . Shots Fired 138 | . 113 25 . Gun 126 | . 107 19 . Cannon . | . . . . Launcher 12 | . 6 6 . Special . | . . . . Kinetic 76 | . 76 . . Thermal 50 | . 31 19 . Explosive 12 | . 6 6 . Electromagnetic . | . . . . Robot Hit Streak 29 | . 29 7 . Robot Miss Streak 2 | . 2 2 . Penetration Max . | . . . . Secondary Targets 1 | . 1 . . Max Gunslinging Chain 1 | . 1 . . Shots Hit Robots 105 | . 85 20 . Core Hits 57 | . 48 9 . Critical Kills . | . . . . Critical Parts Destroyed . | . . . . Critical Strikes . | . . . . Melee Attacks 1 | . 1 . . Impact . | . . . . Slashing 1 | . 1 . . Piercing . | . . . . Sneak Attacks . | . . . . Combat Hostiles . | . . . . Follow-up Attacks . | . . . . Damage Inflicted 1704 | . 1244 460 . Guns 873 | . 697 176 . Cannons . | . . . . Explosions 831 | . 547 284 . Melee . | . . . . Ramming . | . . . . Kinetic 515 | . 515 . . Thermal 358 | . 182 176 . Explosive 752 | . 468 284 . Electromagnetic 79 | . 79 . . Impact . | . . . . Slashing . | . . . . Piercing . | . . . . Highest Corruption . | . . . . Average Corruption . | . . . . Corruption Purged . | . . . . Corruption Blocked . | . . . . Overload Shots . | . . . . Overflow Damage 4 | . . 4 . Projectiles . | . . . . Explosions 4 | . . 4 . Melee . | . . . . Knockbacks . | . . . . Impact . | . . . . Kinetic . | . . . . Secondary . | . . . . Self-Inflicted Damage 92 | . 64 28 . Shots 5 | . 4 1 . Rammed . | . . . . Targets Rammed . | . . . . Kicked . | . . . . Crushed . | . . . . Highest Temperature 150 | . 150 . . Average Temperature 31 | . 31 . . Received Heat Transfer 456 | . 396 42 18 Siege Activations . | . . . . Martial Activations . | . . . . Shielding Activations . | . . . . Robots Disrupted . | . . . . Combat Hostiles . | . . . . Robots Corrupted . | . . . . Combat Hostiles . | . . . . Parts Fried . | . . . . Impact Corruptions . | . . . . Robots Melted . | . . . . Combat Hostiles . | . . . . Parts Melted 2 | . 1 1 . Heat Transferred 825 | . 425 400 . Parts Sabotaged . | . . . . Parts Stolen . | . . . . Parts Stripped . | . . . . Power Chain Reactions . | . . . . Alert | -11 -10 -10 -9 ------- Run | Yrd Mat Sub Scr Maximum Alert Level . | . . . . Low Security (%) 100 | 100 100 . . Level 1 . | . . . . Level 2 . | . . . . Level 3 . | . . . . Level 4 . | . . . . Level 5 . | . . . . High Security . | . . . . Max Security . | . . . . Peak Influence 136 | . 136 . . Initial . | . . . . Average 36 | . 38 . . Influence Increases 731 | . 646 85 . Destroy 0b10 Robot/C 460 | . 420 40 . Destroy 0b10 Robot/NC 5 | . 5 . . Destroy Leader 100 | . 100 . . Successful Hack 26 | . 26 . . Select Force Hacks 30 | . 30 . . Disable Machine 18 | . 18 . . Destroy Structure 32 | . 32 . . Lose Combat Pursuer 60 | . 15 45 . Influence Decreases 731 | . 587 144 . Entered New Map 33 | . . 33 . Time Decay 678 | . 577 101 . Lost Part 20 | . 10 10 . Squads Dispatched 6 | . 6 . . Investigation 6 | . 6 . . Extermination . | . . . . Reinforcement . | . . . . Assault . | . . . . Garrison . | . . . . Intercept . | . . . . Searches Triggered . | . . . . Construction Impeded . | . . . . Haulers Reinforced . | . . . . Active Scanning Responses . | . . . . Cargo Convoy Interrupts . | . . . . Stealth | -11 -10 -10 -9 --------- Run | Yrd Mat Sub Scr Distress Signals 2 | . 2 . . Communications Jammed . | . . . . Distress Signals . | . . . . Times Spotted 47 | . 31 10 6 Peak Tracking Total 7 | . 4 6 7 Tactical Retreats 2 | . 1 1 . Traps | -11 -10 -10 -9 ------- Run | Yrd Mat Sub Scr Traps Triggered 3 | . 3 . . Indirectly . | . . . . Trap Hack Attempts . | . . . . Triggered . | . . . . Disarmed . | . . . . Reprogrammed . | . . . . Reused . | . . . . Traps Extracted . | . . . . Installed . | . . . . Triggered . | . . . . Objects Rigged 1 | . 1 . . Exploded 1 | . 1 . . Machines | -11 -10 -10 -9 ---------- Run | Yrd Mat Sub Scr Machines Disabled 4 | . 2 . 2 Max in Single Turn 1 | . 1 . . Machines Repaired . | . . . . Machines Dismantled . | . . . . Machines Sabotaged . | . . . . Overloaded Fab Kills . | . . . . Hacking | -11 -10 -10 -9 --------- Run | Yrd Mat Sub Scr Machines Accessed 11 | . 8 . 3 Terminals 6 | . 6 . . Fabricators . | . . . . Repair Stations 1 | . 1 . . Recycling Units 1 | . 1 . . Scanalyzers . | . . . . Garrison Access . | . . . . Total Hacks 59 | . 31 . 28 Successful 47 | . 19 . 28 Failed 12 | . 12 . . Catastrophic . | . . . . Database Lockouts . | . . . . Manual 28 | . 28 . . Terminals 25 | . 25 . . Fabricators . | . . . . Repair Stations 3 | . 3 . . Recycling Units 3 | . 3 . . Scanalyzers . | . . . . Garrison Access . | . . . . Terminal Hacks 28 | . . . 28 Record 28 | . . . 28 Fabricator Hacks . | . . . . Repair Station Hacks 3 | . 3 . . Scan Component 2 | . 2 . . Repair 1 | . 1 . . Recycling Unit Hacks 1 | . 1 . . Recycle Component 1 | . 1 . . Scanalyzer . | . . . . Garrison Access Hacks . | . . . . Unauthorized Hacks 15 | . 15 . . Terminals 14 | . 14 . . Track 4 | . 4 . . Assimilate 3 | . 3 . . Botnet 6 | . 6 . . Detonate 1 | . 1 . . Fabricators . | . . . . Repair Stations . | . . . . Recycling Units 1 | . 1 . . Tunnel 1 | . 1 . . Scanalyzers . | . . . . Garrison Access . | . . . . Data Cores Recovered . | . . . . Used . | . . . . Hacking Detections 7 | . 7 . . Full Trace Events 7 | . 7 . . Feedback Events . | . . . . Feedback Blocked . | . . . . Robot Schematics Acquired . | . . . . Robots Built . | . . . . Authchips . | . . . . Time . | . . . . Total Robot Build Rating . | . . . . Part Schematics Acquired . | . . . . Parts Built . | . . . . Authchips . | . . . . Time . | . . . . Total Part Build Rating . | . . . . Part Studies Acquired . | . . . . Parts Repaired 1 | . 1 . . Time 26 | . 26 . . Parts Recycled 1 | . 1 . . Recycled Matter . | . . . . Retrieved Matter . | . . . . Retrieved Components . | . . . . Parts Scanalyzed . | . . . . Part Schematics Acquired . | . . . . Parts Damaged . | . . . . Bothacking | -11 -10 -10 -9 ------------ Run | Yrd Mat Sub Scr Used RIF Installer . | . . . . Robots Hacked . | . . . . Non-combat . | . . . . Combat . | . . . . Robot Hacks Applied . | . . . . Relay Couplers Released . | . . . . Fabnet Peak Effective % . | . . . . Robots Rewired . | . . . . Allies Hacked . | . . . . Hacks Repelled . | . . . . Allies | -11 -10 -10 -9 -------- Run | Yrd Mat Sub Scr Total Allies 1 | . . . 1 Largest Group 1 | . . . 1 Highest-Rated Group 464 | . . . 464 Highest-Rated Ally 464 | . . . 464 Total Orders . | . . . . Ally Attacks 5 | . . . 5 Total Damage 1176 | . . . 1176 Kills 4 | . . . 4 Allies Corrupted . | . . . . Allies Melted 1 | . . 1 . X0-1V1 Amusement Gains 46 | . 21 5 20 Average Entertainment 16 | . 21 16 18 Good Acts 1 | . . 1 . Bad Acts 1 | . . 1 . Intel | -11 -10 -10 -9 ------- Run | Yrd Mat Sub Scr Active Infowar (turns) 1671 | . 1671 . . Sensors 1671 | . 1671 . . Robot Analysis Total . | . . . . Derelict Logs Recovered 1 | . . . 1 Drone Launches . | . . . . Drone Recoveries . | . . . . Exploration | -11 -10 -10 -9 ------------- Run | Yrd Mat Sub Scr Turns Passed 4058 | 73 1757 636 1592 Spaces Moved 1909 | 64 826 292 727 Core 3 | 1 2 . . Treads . | . . . . Legs 1684 | . 665 292 727 Wheels 222 | 63 159 . . Hover . | . . . . Flight . | . . . . Fastest Speed 50 | 50 90 190 190 Average Speed 189 | 89 172 190 218 Slowest Speed 500 | 100 500 190 400 Overloaded Moves . | . . . . Propulsion Burnouts . | . . . . Robots Hopped . | . . . . Potential Cave-ins . | . . . . Cave-ins Triggered . | . . . . Exploration Rate (%) 40 | 3 81 22 54 Regions Visited 3 Branch Regions 2 Pre-discovered Areas 2 | . 1 1 . Known Exits Taken . | . . . . Unknown Exits Taken 3 | 1 1 1 . Scrap Searched 2 | . . . 2 Spaces Dug . | . . . . Terrain Destroyed 71 | . 40 31 . Melee . | . . . . Projectile . | . . . . AOE 71 | . 40 31 . Terrain Rammed . | . . . . Walls Destroyed . | . . . . Machines Disabled . | . . . . Actions | -11 -10 -10 -9 --------- Run | Yrd Mat Sub Scr Total 2228 | 76 1071 349 732 Wait 145 | . 108 37 . Move 1906 | 63 825 291 727 Hop . | . . . . Pick Up 32 | 7 23 2 . Fast Attach 10 | 5 4 . 1 Attach 4 | 1 2 1 . Detach 3 | . 2 . 1 Swap 26 | . 22 2 2 Drop 29 | . 25 3 1 Fire 72 | . 59 13 . Melee 1 | . 1 . . Ram . | . . . . Kick . | . . . . Crush . | . . . . Escape Stasis . | . . . . Rewire . | . . . . Trap . | . . . . Miscellaneous . | . . . . Route ------- -11/Scrapyard -10/Materials (discovered 4 exits: [*Mat x2] / [*Min] / [*Sub]) -10/Subcaves -9/Scraptown (discovered 1 exit: [*Fac]) History --------- Turn | Location | Event 19 | -11/Scrapyard | Discovered new exit (range 15) 74 | -11/Scrapyard | Entered Materials 209 | -10/Materials | Discovered new exit (range 12) 318 | -10/Materials | Build established: Mutant 567 | -10/Materials | Discovered new exit (range 13) 792 | -10/Materials | Repaired Ion Engine 1378 | -10/Materials | Discovered new exit (range 15) 1802 | -10/Materials | Core integrity fell below 50% 1816 | -10/Materials | Discovered new exit (range 5) 1824 | -10/Materials | Prayed at D.C.S.S. Altar Unit 1831 | -10/Materials | Entered Subcaves 1832 | -10/Subcaves | Approached by a straggling Scientist 1836 | -10/Subcaves | Shifting Twisted Machinery released Sub. Power Source 1869 | -10/Subcaves | Learned location of Zion (-7) 1869 | -10/Subcaves | Met a Zionite searching for "candidates" 1885 | -10/Subcaves | Shifting Twisted Machinery released Sub. Beam Cannon 2270 | -10/Subcaves | A swath of the cavern ceiling suddenly collapsed 2360 | -10/Subcaves | Melee accuracy permanently improved by X0-1V1 (+5%; -50 max core) 2389 | -10/Subcaves | Scientist uncovered a shortcut to Scraptown 2452 | -10/Subcaves | Build established: Scavenger-Mutant 2467 | -10/Subcaves | Entered Scraptown 2774 | -9/Scraptown | Visited UFD Registry 2779 | -9/Scraptown | Registered with UFD as "Novaframe" 3203 | -9/Scraptown | Discovered new exit (range 11) 3249 | -9/Scraptown | Guru changed UFD alias to "Protontalker" 3418 | -9/Scraptown | Scanned Subdweller tech in exchange for log data 3431 | -9/Scraptown | Learned Research trap positions 3498 | -9/Scraptown | Visited Spacefarers 3602 | -9/Scraptown | Visited CPS Storage 3644 | -9/Scraptown | Visited Cyclists 3688 | -9/Scraptown | Entered Cyclist Reading Room 3808 | -9/Scraptown | Heard Great Nut preacher, LISTEN AND RECITE! 3927 | -9/Scraptown | Visited Red Mages 4021 | -9/Scraptown | Visited Shadow of the Wyrm 4052 | -9/Scraptown | X0-1V1 brought Wyrm Statue to life 4052 | -9/Scraptown | Attacked by Scraptown defenders 4059 | -9/Scraptown | Destroyed by Chaos Wyrm with Ragnarok Missile Launcher Last Messages --------------- Sadly MC quashes any attempts to reach the surface with his virtual monopoly of the upper layers. Either way, first we need to find Wyrm again, our perfect protector for such an epic journey. 04052_ A towering statue of a majestic wyrm. 04052_ X0-1V1 animates Wyrm Statue. 04052_ ANNOUNCEMENT: Intruder alert! Defend Scraptown! 04053_ 7L-X1X(x): "Death by animated Wyrm Statue is not how I thought my cycle would be going." 04053_ Machine disabled. 04056_ 1S-KFK(g) destroyed. 04056_ 7L-X1X(x) destroyed. 04056_ LX-FWJ(g) destroyed. 04056_ Machine disabled. 04056_ Aluminum Leg destroyed. 04056_ X0-1V1 is amused. 04058_ The unstable cave ceiling collapses. 04059_ AM-RRT(g) destroyed. 04059_ Ion Engine destroyed. 04059_ X0-1V1 bursts into laughter! Map ----- +----------------------------------------------------+ | ?????# #???#???????" "????####### #??????# """" | | ????## ##??????????# #??????????# #??????# ||| | | ????# ############ ############ #??????# """" | | ????# #??????# | | | | ????# #??????# """" | | ????# ######################### #??????# ||| | | ????## ##??????????????????????# #??????# | | ###### ###########????########### ########## ## | | """""" """""""## ""##""""" # | | """""" " "## " " # | | """"" = "#???????# # | | " " [! "#???????# """ | | " *] "#???????# """ # | | "" " " [! "#???????# """ # ############# | | """""" " /! "#???????# """ # ############# | | ###### " ![ "#???????# """ # # """"""""? | | ###### " "#???????# # # """ """#?? | | """""" """" ""#???????# " " # """ +?? | | """" " #### ###???????#""""" # # " " ""#?? | | " " #### ###???????######### # "#?? | | " """" ""#???????????????# # """ "#?? | | " "#???????????????# # "" "#?? | | """ " " "" "#????????######## # """ "#?? | | " " "" "#??????###" # # "### | | " " " "#??????# # # " """ | | " " ""#??????# @% # """"" """" | | "" " " """""#??????# DD% #"""""""""""" | | " """""""#??????# DDg g ############# | | " " """""""???????# %= #???????????? | | "" " ######????????# [ ############# | | " #?????????????# | | "" " #???X""#??????## # # | | "" " #?? "#???????## ## c | | #? "#????????######## | | " #? "#???????????????# | | " #" "#????????????? | | """""" #" "#??????????? | | ###### #"" """#####?????? | | ?????# ??? ############ ####### | | ###### ?? ?????????? ????# | | """""" #"" """##"" ""???? ????????? "#???# | | " "" #" "#????????????????????" "#???# | | " "" #"" "#????????????????????" ""????# | | "" #?" "#????????????????????" """????# | | "" #?? " "#????????????????????" "?????# | | #???" "#????????????????????? ???????# | | " #?????"#?????????????#?????????????????# | | "" #??????????????????? #?????????????????### | | "" #######??#####?????? #???????????????????? | | "" """""""#?#"""#????? #???????????????????? | +----------------------------------------------------+ Best States ------------- Heat Dissipation 25 Energy Generation 10 Energy Capacity 250 Matter Stores 300 Matter Capacity 300 Sight Range 16 Robot Scan Range 14 Terrain Scan Density 10 Resistance: KI 20 Resistance: TH 20 Resistance: EX 20 Resistance: EM 20 Resistance: I 20 Resistance: S 20 Resistance: P 20 Core Shielding 20 Evasion (%) 42 Offensive Hacking 10 Item Schematics ----------------- None Robot Schematics ------------------ None Fabricated ------------ Nothing Repaired ---------- Ion Engine | 65% | -10/Materials Studied --------- None Alien Tech Used ----------------- None Achievements -------------- None Challenges ------------ None Game ------ Seed ShiftModifiedAirjet Manual? 0 Play Time 00:28:07 Cumulative 585.1 hours Start 2026.09.10 @ 20:28:51 End 2026.09.11 @ 18:24:08 Sessions 2 Manual Loads 0 Difficulty Adventurer Special Mode None Game No. 52 Rogue 5 Adventurer 3 Explorer 44 Win Type - Total 10 Types 9/0/0/1/0/0/0/0/0/0 Lore% 65 Gallery% 62 Achievement% 56 Wizard Run 0 Options --------- Layout 0 ASCII 0 Keyboard 0 Movement Mouse Keybinds 1 Fullscreen 1 Font 18/X11 Map View 38x25 Zoom Use 99% Tactical HUD 1 Map Filters NONE Filters NONE Steam 1 RUN: 5931f0b8-d1f4-495a-b784-793aad841994